fUSD/lending_fUSD_20240125
["ID","MTS","AMOUNT","RATE_DAILY","PERIOD"]
[312681121,1706145069338,-537.04,0.00049589,31]
[312681122,1706145069347,-500.0,0.00049589,31]
[312681123,1706145069357,-500.0,0.00049589,31]
[312681124,1706145069367,-584.5,0.00049589,31]
[312681125,1706145069376,-835.92,0.00049589,31]
[312681126,1706145069386,-742.38,0.00049589,31]
[312681127,1706145069395,-660.52,0.00049589,31]
[312681128,1706145069406,-500.0,0.00049589,31]
[312681129,1706145069418,-500.0,0.00049589,31]
[312681130,1706145069429,-500.0,0.00049589,31]
[312681131,1706145069438,-540.87,0.00049589,31]
[312681132,1706145069448,-1086.36,0.00049589,31]
[312681133,1706145069457,-500.0,0.00049589,31]
[312681134,1706145069467,-500.0,0.00049589,31]
[312681135,1706145069476,-1735.79,0.00049589,31]
[312681136,1706145069486,-650.74,0.00049589,31]
[312681137,1706145069495,-500.0,0.00049589,31]
[312681138,1706145069505,-500.0,0.00049589,31]
[312681139,1706145069515,-647.69,0.00049589,120]
[312681140,1706145069525,-500.0,0.00049589,31]
[312681141,1706145069535,-500.0,0.00049589,31]
[312681142,1706145069544,-677.43,0.00049589,31]
[312681143,1706145069558,-500.0,0.00049589,31]
[312681144,1706145069568,-700.44,0.00049589,31]
[312681145,1706145069578,-500.0,0.00049589,31]
[312681146,1706145069588,-1060.9,0.00049589,31]
[312681147,1706145069598,-500.0,0.00049589,31]
[312681148,1706145069607,-500.55,0.00049589,31]
[312681149,1706145069617,-547.24,0.00049589,31]
[312681150,1706145069626,-500.0,0.00049589,31]
[312681151,1706145069637,-2280.94,0.00049589,31]
[312681152,1706145069648,-552.79,0.00049589,31]
[312681153,1706145069657,-1320.68,0.00049589,31]
[312681154,1706145069667,-500.0,0.00049589,31]
[312681155,1706145069677,-1247.14,0.00049589,31]
[312681156,1706145069686,-500.0,0.00049589,31]
[312681157,1706145069696,-500.0,0.00049589,31]
[312681158,1706145069705,-581.01,0.00049589,31]
[312681159,1706145069715,-500.0,0.00049589,31]
[312681160,1706145069724,-712.54,0.00049589,31]
[312681161,1706145069734,-500.0,0.00049589,31]
[312681162,1706145069743,-500.0,0.00049589,31]
[312681163,1706145069753,-608.94,0.00049589,31]
[312681164,1706145069763,-500.0,0.00049589,31]
[312681165,1706145069772,-693.55,0.00049589,31]
[312681166,1706145069782,-500.0,0.00049589,31]
[312681167,1706145069792,-500.0,0.00049589,31]
[312681168,1706145069801,-500.0,0.00049589,31]
[312681169,1706145069812,-500.0,0.00049589,31]
[312681170,1706145069821,-500.0,0.00049589,31]
[312681171,1706145069830,-887.42,0.00049589,31]
[312681172,1706145069841,-500.0,0.00049589,31]
[312681173,1706145069850,-633.04,0.00049589,31]
[312681174,1706145069860,-706.67,0.00049589,31]
[312681175,1706145069869,-500.0,0.00049589,31]
[312681176,1706145069879,-500.0,0.00049589,31]
[312681177,1706145069889,-778.86,0.00049589,31]
[312681178,1706145069899,-639.06,0.00049589,31]
[312681179,1706145069909,-4966.08,0.00049589,31]
[312681180,1706145069919,-712.26,0.00049589,31]
[312681181,1706145069928,-1315.35,0.00049589,31]
[312681182,1706145069938,-500.0,0.00049589,31]
[312681183,1706145069948,-740.74,0.00049589,31]
[312681184,1706145069958,-564.19,0.00049589,31]
[312681185,1706145069968,-645.15,0.00049589,31]
[312681186,1706145069978,-500.0,0.00049589,31]
[312681187,1706145069987,-765.5,0.00049589,31]
[312681188,1706145069997,-1073.61,0.00049589,31]
[312681189,1706145070006,-500.0,0.00049589,31]
[312681190,1706145070016,-500.0,0.00049589,31]
[312681191,1706145070025,-539.53,0.00049589,31]
[312681192,1706145070035,-751.1,0.00049589,31]
[312681193,1706145070046,-392.62083924,0.00049589,31]
[312681194,1706145070057,-500.0,0.00049589,31]
[312681195,1706145070067,-553.53,0.00049589,31]
[312681196,1706145070077,-500.0,0.00049589,31]
[312681197,1706145070087,-500.0,0.00049589,31]
[312681198,1706145070097,-537.1,0.00049589,31]
[312681199,1706145070107,-608.69,0.00049589,31]
[312681200,1706145070117,-649.59,0.00049589,31]
[312681201,1706145070128,-3061.04,0.00049589,31]
[312681202,1706145070138,-875.62,0.00049589,31]
[312681203,1706145070147,-769.1,0.00049589,31]
[312681204,1706145070157,-1451.54,0.00049589,31]
[312681205,1706145070167,-500.0,0.00049589,31]
[312681206,1706145070177,-860.59,0.00049589,31]
[312681207,1706145070187,-500.0,0.00049589,31]
[312681208,1706145070198,-703.22,0.00049589,31]
[312681209,1706145070207,-992.0,0.00049589,31]
[312681210,1706145070217,-737.72,0.00049589,31]
[312681211,1706145070227,-658.3,0.00049589,31]
[312681212,1706145070237,-500.0,0.00049589,31]
[312681213,1706145070246,-500.0,0.00049589,31]
[312681214,1706145070256,-500.0,0.00049589,31]
[312681215,1706145070266,-500.0,0.00049589,31]
[312681216,1706145070276,-500.0,0.00049589,31]
[312681217,1706145070286,-500.0,0.00049589,31]
[312681218,1706145070295,-500.0,0.00049589,31]
[312681219,1706145070306,-655.7,0.00049589,31]
[312681220,1706145070316,-599.29,0.00049589,31]
[312681221,1706145070326,-500.0,0.00049589,31]
[312681222,1706145070336,-764.66,0.00049589,31]
[312681223,1706145070346,-500.0,0.00049589,31]
[312681224,1706145070356,-3144.18,0.00049589,31]
[312681225,1706145070366,-201.83240188,0.00049589,7]
[312681226,1706145070375,-548.31,0.00049589,31]
[312681227,1706145070385,-673.27,0.00049589,31]
[312681228,1706145070394,-500.0,0.00049589,31]
[312681229,1706145070403,-500.0,0.00049589,31]
[312681230,1706145070413,-531.97684567,0.00049589,31]
[312681231,1706145070423,-765.11,0.00049589,31]
[312681232,1706145070432,-730.54,0.00049589,31]
[312681233,1706145070443,-500.0,0.00049589,31]
[312681234,1706145070452,-500.0,0.00049589,31]
[312681235,1706145070462,-515.5,0.00049589,31]
[312681236,1706145070472,-5000.0,0.00049589,14]
[312681237,1706145070481,-1295.4,0.00049589,31]
[312681238,1706145070491,-618.61,0.00049589,31]
[312681239,1706145070501,-500.0,0.00049589,31]
[312681240,1706145070511,-500.0,0.00049589,31]
[312681241,1706145070525,-792.67,0.00049589,31]
[312681242,1706145070535,-500.0,0.00049589,31]
[312681243,1706145070545,-519.18207856,0.00049589,31]
[312681244,1706145070555,-500.0,0.00049589,31]
[312681245,1706145070566,-600.26,0.00049589,31]
[312681246,1706145070575,-1247.69,0.00049589,31]
[312681247,1706145070585,-501.79,0.00049589,31]
[312681248,1706145070596,-500.0,0.00049589,31]
[312681249,1706145070606,-500.0,0.00049589,31]
[312681250,1706145070615,-678.69,0.00049589,31]
[312681251,1706145070624,-500.0,0.00049589,31]
[312681252,1706145070634,-560.58,0.00049589,31]
[312681253,1706145070643,-748.16,0.00049589,31]
[312681254,1706145070653,-689.9,0.00049589,31]
[312681255,1706145070663,-358.23690522,0.00049589,31]
[312681256,1706145070673,-3710.41,0.00049589,31]
[312681257,1706145070683,-500.0,0.00049589,120]
[312681258,1706145070693,-1129.79,0.00049589,31]
[312681259,1706145070703,-500.0,0.00049589,31]
[312681260,1706145070712,-500.0,0.00049589,31]
[312681261,1706145070723,-500.0,0.00049589,31]
[312681262,1706145070733,-500.0,0.00049589,31]
[312681263,1706145070743,-2615.23,0.00049589,31]
[312681264,1706145070752,-536.66,0.00049589,31]
[312681265,1706145070761,-500.0,0.00049589,31]
[312681266,1706145070771,-1281.32,0.00049589,31]
[312681267,1706145070780,-529.46235155,0.00049589,31]
[312681268,1706145070790,-820.44,0.00049589,31]
[312681269,1706145070799,-500.0,0.00049589,31]
[312681270,1706145070809,-500.0,0.00049589,31]
[312681271,1706145070819,-1013.31,0.00049589,31]
[312681272,1706145070828,-559.051742,0.00049589,31]
[312681273,1706145070838,-500.0,0.00049589,31]
[312681274,1706145070848,-500.0,0.00049589,31]
[312681275,1706145070857,-571.87,0.00049589,31]
[312681276,1706145070867,-500.0,0.00049589,31]
[312681277,1706145070877,-500.0,0.00049589,31]
[312681278,1706145070887,-500.0,0.00049589,31]
[312681279,1706145070896,-605.74,0.00049589,31]
[312681280,1706145070906,-500.0,0.00049589,31]
[312681281,1706145070916,-500.0,0.00049589,31]
[312681282,1706145070925,-500.0,0.00049589,31]
[312681283,1706145070935,-756.21,0.00049589,31]
[312681284,1706145070946,-537.66,0.00049589,31]
[312681285,1706145070956,-594.93,0.00049589,2]
[312681286,1706145070965,-500.0,0.00049589,31]
[312681287,1706145070975,-500.0,0.00049589,31]
[312681288,1706145070984,-724.18,0.00049589,31]
[312681289,1706145070994,-500.0,0.00049589,31]
[312681290,1706145071004,-724.25,0.00049589,31]
[312681291,1706145071013,-2993.87,0.00049589,31]
[312681292,1706145071023,-618.86,0.00049589,31]
[312681293,1706145071033,-500.0,0.00049589,31]
[312681294,1706145071043,-612.72,0.00049589,31]
[312681295,1706145071053,-448.82781641,0.00049589,31]
[312681296,1706145071063,-500.0,0.00049589,31]
[312681297,1706145071073,-500.0,0.00049589,31]
[312681298,1706145071082,-887.79,0.00049589,31]
[312681299,1706145071092,-514.92,0.00049589,31]
[312681300,1706145071102,-370.31,0.00049589,31]
[312681301,1706145071117,-500.0,0.00049589,31]
[312681302,1706145071127,-500.0,0.00049589,31]
[312681303,1706145071138,-642.33616826,0.00049589,31]
[312681304,1706145071150,-1822.59,0.00049589,2]
[312681305,1706145071160,-500.0,0.00049589,31]
[312681306,1706145071170,-500.0,0.00049589,31]
[312681307,1706145071182,-939.98,0.00049589,31]
[312681308,1706145071192,-1226.02,0.00049589,31]
[312681309,1706145071203,-500.0,0.00049589,31]
[312681310,1706145071214,-508.04,0.00049589,31]
[312681311,1706145071225,-500.0,0.00049589,31]
[312681312,1706145071235,-500.0,0.00049589,31]
[312681313,1706145071246,-500.0,0.00049589,31]
[312681314,1706145071256,-681.8,0.00049589,31]
[312681315,1706145071266,-646.07,0.00049589,31]
[312681316,1706145071277,-500.0,0.00049589,31]
[312681317,1706145071287,-836.07,0.00049589,31]
[312681318,1706145071299,-500.0,0.00049589,31]
[312681319,1706145071310,-1803.22,0.00049589,5]
[312681320,1706145071320,-151.0,0.00049589,14]
[312681321,1706145071330,-151.0,0.00049589,14]
[312681322,1706145071339,-151.0,0.00049589,14]
[312681323,1706145071350,-151.0,0.00049589,14]
[312681324,1706145071359,-516.58311,0.00049589,14]
[312681325,1706145071369,-516.58311,0.00049589,14]
[312681326,1706145071379,-151.0,0.00049589,14]
[312681327,1706145071389,-151.0,0.00049589,14]
[312681328,1706145071399,-5000.0,0.000496,120]
[312681329,1706145071409,-5000.0,0.000497,120]
[312681330,1706145071419,-3105.3,0.000497,35]
[312681331,1706145071618,-1033.0,0.0004972,8]
[312681332,1706145071629,-1000.0,0.000498,120]
[312681333,1706145071640,-233.38585,0.00049829,2]
[312681334,1706145071651,-1397.3602891,0.00049829,2]
[312681335,1706145071662,-709.6931223,0.00049829,2]
[312681336,1706145071672,-588.1932931,0.00049829,2]
[312681337,1706145071681,-164.0,0.00049839,120]
[312681338,1706145071690,-300.0,0.00049862,2]
[312681339,1706145071700,-337.40432118,0.00049863,7]
[312681340,1706145071710,-500.0,0.00049863,31]
[312681341,1706145071719,-500.0,0.00049863,31]
[312681342,1706145071730,-500.0,0.00049863,31]
[312681343,1706145071739,-500.0,0.00049863,31]
[312681344,1706145071748,-500.0,0.00049863,31]
[312681345,1706145071757,-500.0,0.00049863,31]
[312681346,1706145071766,-350.29662228,0.00049863,15]
[312681347,1706145071775,-500.0,0.00049863,31]
[312681348,1706145071785,-500.0,0.00049863,31]
[312681349,1706145071794,-500.0,0.00049863,31]
[312681350,1706145071804,-500.0,0.00049863,31]
[312681351,1706145071814,-500.0,0.00049863,31]
[312681352,1706145071823,-500.0,0.00049863,31]
[312681353,1706145071834,-500.0,0.00049863,31]
[312681354,1706145071845,-500.0,0.00049863,31]
[312681355,1706145071855,-500.0,0.00049863,31]
[312681356,1706145071864,-500.0,0.00049863,31]
[312681357,1706145071873,-500.0,0.00049863,31]
[312681358,1706145071882,-500.0,0.00049863,31]
[312681359,1706145071893,-500.0,0.00049863,31]
[312681360,1706145071902,-500.0,0.00049863,31]
[312681361,1706145071913,-500.0,0.00049863,31]
[312681362,1706145071925,-500.0,0.00049863,31]
[312681363,1706145071935,-500.0,0.00049863,31]
[312681364,1706145071946,-500.0,0.00049863,31]
[312681365,1706145071956,-500.0,0.00049863,31]
[312681366,1706145071965,-500.0,0.00049863,31]
[312681367,1706145071974,-250.0,0.00049863,31]
[312681368,1706145071984,-588.56213029,0.00049863,31]
[312681369,1706145071993,-500.0,0.00049863,31]
[312681370,1706145072003,-571.81,0.00049863,31]
[312681371,1706145072012,-500.0,0.00049863,31]
[312681372,1706145072022,-500.0,0.00049863,31]
[312681373,1706145072031,-239.35994803,0.00049863,31]
[312681374,1706145072041,-500.0,0.00049863,31]
[312681375,1706145072050,-500.0,0.00049863,31]
[312681376,1706145072063,-1000.0,0.00049863,7]
[312681377,1706145072073,-500.0,0.00049863,31]
[312681378,1706145072083,-569.3,0.00049863,31]
[312681379,1706145072092,-500.0,0.00049863,31]
[312681380,1706145072101,-500.0,0.00049863,31]
[312681381,1706145072111,-500.0,0.00049863,31]
[312681382,1706145072120,-500.0,0.00049863,30]
[312681383,1706145072130,-500.0,0.00049863,31]
[312681384,1706145072140,-500.0,0.00049863,31]
[312681385,1706145072149,-500.0,0.00049863,31]
[312681386,1706145072158,-500.0,0.00049863,31]
[312681387,1706145072168,-607.8,0.00049863,31]
[312681388,1706145072178,-500.0,0.00049863,31]
[312681389,1706145072187,-500.0,0.00049863,31]
[312681390,1706145072197,-500.0,0.00049863,31]
[312681391,1706145072207,-510.64,0.00049863,31]
[312681392,1706145072216,-500.0,0.00049863,31]
[312681393,1706145072225,-500.0,0.00049863,31]
[312681394,1706145072235,-500.0,0.00049863,31]
[312681395,1706145072244,-500.0,0.00049863,31]
[312681396,1706145072254,-201.56899692,0.00049863,31]
[312681397,1706145072263,-500.0,0.00049863,31]
[312681398,1706145072273,-563.82,0.00049863,31]
[312681399,1706145072283,-500.0,0.00049863,31]
[312681400,1706145072292,-500.0,0.00049863,31]
[312681401,1706145072302,-510.96,0.00049863,31]
[312681402,1706145072316,-500.0,0.00049863,31]
[312681403,1706145072326,-500.0,0.00049863,31]
[312681404,1706145072335,-545.8,0.00049863,31]
[312681405,1706145072345,-500.0,0.00049863,31]
[312681406,1706145072355,-547.01,0.00049863,31]
[312681407,1706145072364,-500.0,0.00049863,31]
[312681408,1706145072374,-500.0,0.00049863,31]
[312681409,1706145072384,-500.0,0.00049863,31]
[312681410,1706145072393,-500.0,0.00049863,31]
[312681411,1706145072402,-500.0,0.00049863,31]
[312681412,1706145072411,-500.0,0.00049863,31]
[312681413,1706145072422,-500.0,0.00049863,31]
[312681414,1706145072432,-500.0,0.00049863,31]
[312681415,1706145072441,-500.0,0.00049863,31]
[312681416,1706145072450,-500.0,0.00049863,31]
[312681417,1706145072460,-500.0,0.00049863,31]
[312681418,1706145072469,-665.93,0.00049863,31]
[312681419,1706145072478,-500.0,0.00049863,31]
[312681420,1706145072487,-500.0,0.00049863,31]
[312681421,1706145072497,-500.0,0.00049863,31]
[312681422,1706145072506,-1000.0,0.00049863,7]
[312681423,1706145072515,-500.0,0.00049863,31]
[312681424,1706145072528,-500.0,0.00049863,31]
[312681425,1706145072537,-500.0,0.00049863,31]
[312681426,1706145072546,-500.0,0.00049863,31]
[312681427,1706145072558,-500.0,0.00049863,31]
[312681428,1706145072568,-500.0,0.00049863,31]
[312681429,1706145072577,-500.0,0.00049863,31]
[312681430,1706145072587,-500.0,0.00049863,31]
[312681431,1706145072596,-4118.15,0.00049863,15]
[312681432,1706145072607,-500.0,0.00049863,31]
[312681433,1706145072617,-937.73,0.00049863,2]
[312681434,1706145072627,-523.13,0.00049863,31]
[312681435,1706145072636,-1968.51,0.00049863,31]
[312681436,1706145072646,-500.0,0.00049863,31]
[312681437,1706145072656,-500.0,0.00049863,31]
[312681438,1706145072666,-316.36384573,0.00049863,31]
[312681439,1706145072675,-539.3,0.00049863,31]
[312681440,1706145072684,-500.0,0.00049863,31]
[312681441,1706145072694,-500.0,0.00049863,31]
[312681442,1706145072703,-500.0,0.00049863,31]
[312681443,1706145072712,-500.0,0.00049863,31]
[312681444,1706145072721,-500.0,0.00049863,31]
[312681445,1706145072730,-500.0,0.00049863,31]
[312681446,1706145072739,-4141.1,0.00049863,31]
[312681447,1706145072748,-500.0,0.00049863,31]
[312681448,1706145072758,-500.0,0.00049863,31]
[312681449,1706145072767,-500.0,0.00049863,31]
[312681450,1706145072777,-500.0,0.00049863,31]
[312681451,1706145072786,-500.0,0.00049863,31]
[312681452,1706145072795,-500.0,0.00049863,31]
[312681453,1706145072804,-500.0,0.00049863,31]
[312681454,1706145072816,-500.0,0.00049863,31]
[312681455,1706145072825,-500.0,0.00049863,31]
[312681456,1706145072835,-500.0,0.00049863,31]
[312681457,1706145072844,-500.0,0.00049863,31]
[312681458,1706145072854,-500.0,0.00049863,2]
[312681459,1706145072863,-792.61,0.00049863,31]
[312681460,1706145072871,-500.0,0.00049863,31]
[312681461,1706145072881,-500.0,0.00049863,31]
[312681462,1706145072890,-500.0,0.00049863,31]
[312681463,1706145072899,-500.0,0.00049863,31]
[312681464,1706145072908,-500.0,0.00049863,31]
[312681465,1706145072917,-530.49926607,0.00049863,31]
[312681466,1706145072926,-500.0,0.00049863,2]
[312681467,1706145072935,-500.0,0.00049863,31]
[312681468,1706145072945,-500.0,0.00049863,31]
[312681469,1706145072955,-500.0,0.00049863,31]
[312681470,1706145072964,-702.69,0.00049863,31]
[312681471,1706145072973,-500.0,0.00049863,31]
[312681472,1706145072982,-500.0,0.00049863,31]
[312681473,1706145072992,-520.62902806,0.00049863,31]
[312681474,1706145073001,-500.0,0.00049863,31]
[312681475,1706145073011,-500.0,0.00049863,31]
[312681476,1706145073020,-668.66,0.00049863,31]
[312681477,1706145073029,-619.19,0.00049863,31]
[312681478,1706145073039,-500.0,0.00049863,31]
[312681479,1706145073048,-953.39,0.00049863,31]
[312681480,1706145073059,-500.0,0.00049863,31]
[312681481,1706145073069,-500.0,0.00049863,31]
[312681482,1706145073077,-500.0,0.00049863,31]
[312681483,1706145073087,-500.0,0.00049863,31]
[312681484,1706145073096,-500.0,0.00049863,31]
[312681485,1706145073106,-500.0,0.00049863,31]
[312681486,1706145073116,-500.0,0.00049863,31]
[312681487,1706145073125,-500.0,0.00049863,31]
[312681488,1706145073135,-500.0,0.00049863,31]
[312681489,1706145073145,-500.0,0.00049863,31]
[312681490,1706145073156,-500.0,0.00049863,31]
[312681491,1706145073165,-524.2,0.00049863,31]
[312681492,1706145073174,-500.0,0.00049863,31]
[312681493,1706145073184,-500.0,0.00049863,31]
[312681494,1706145073193,-500.0,0.00049863,31]
[312681495,1706145073202,-500.0,0.00049863,31]
[312681496,1706145073212,-500.0,0.00049863,31]
[312681497,1706145073221,-781.79,0.00049863,31]
[312681498,1706145073231,-500.0,0.00049863,31]
[312681499,1706145073240,-401.57152702,0.00049863,31]
[312681500,1706145073249,-500.0,0.00049863,31]
[312681501,1706145073259,-500.0,0.00049863,31]
[312681502,1706145073269,-500.0,0.00049863,10]
[312681503,1706145073279,-500.0,0.00049863,31]
[312681504,1706145073289,-718.1,0.00049863,31]
[312681505,1706145073298,-500.0,0.00049863,31]
[312681506,1706145073308,-500.0,0.00049863,31]
[312681507,1706145073317,-500.0,0.00049863,31]
[312681508,1706145073327,-558.82,0.00049863,31]
[312681509,1706145073335,-500.0,0.00049863,31]
[312681510,1706145073345,-500.0,0.00049863,31]
[312681511,1706145073354,-500.0,0.00049863,31]
[312681512,1706145073363,-500.0,0.00049863,31]
[312681513,1706145073372,-500.0,0.00049863,31]
[312681514,1706145073382,-500.0,0.00049863,31]
[312681515,1706145073391,-500.0,0.00049863,31]
[312681516,1706145073400,-500.0,0.00049863,31]
[312681517,1706145073410,-500.0,0.00049863,31]
[312681518,1706145073419,-500.0,0.00049863,31]
[312681519,1706145073428,-500.0,0.00049863,31]
[312681520,1706145073438,-500.0,0.00049863,31]
[312681521,1706145073447,-500.0,0.00049863,31]
[312681522,1706145073457,-719.02,0.00049863,31]
[312681523,1706145073465,-500.0,0.00049863,31]
[312681524,1706145073475,-500.0,0.00049863,31]
[312681525,1706145073486,-500.0,0.00049863,31]
[312681526,1706145073495,-500.0,0.00049863,31]
[312681527,1706145073506,-500.0,0.00049863,31]
[312681528,1706145073516,-500.0,0.00049863,31]
[312681529,1706145073529,-530.57,0.00049863,31]
[312681530,1706145073538,-590.77,0.00049863,31]
[312681531,1706145073548,-500.0,0.00049863,31]
[312681532,1706145073560,-619.6291111,0.00049863,31]
[312681533,1706145073570,-500.0,0.00049863,31]
[312681534,1706145073579,-500.0,0.00049863,31]
[312681535,1706145073588,-500.0,0.00049863,31]
[312681536,1706145073597,-500.0,0.00049863,31]
[312681537,1706145073606,-500.0,0.00049863,31]
[312681538,1706145073616,-500.0,0.00049863,31]
[312681539,1706145073626,-500.0,0.00049863,31]
[312681540,1706145073635,-1141.79,0.00049863,31]
[312681541,1706145073645,-500.0,0.00049863,31]
[312681542,1706145073654,-500.0,0.00049863,31]
[312681543,1706145073663,-520.55666639,0.00049863,31]
[312681544,1706145073673,-626.76,0.00049863,31]
[312681545,1706145073682,-500.0,0.00049863,31]
[312681546,1706145073691,-500.0,0.00049863,31]
[312681547,1706145073700,-500.0,0.00049863,31]
[312681548,1706145073709,-500.0,0.00049863,31]
[312681549,1706145073719,-500.0,0.00049863,31]
[312681550,1706145073728,-500.0,0.00049863,31]
[312681551,1706145073737,-500.0,0.00049863,31]
[312681552,1706145073746,-500.0,0.00049863,31]
[312681553,1706145073755,-500.0,0.00049863,31]
[312681554,1706145073768,-500.0,0.00049863,31]
[312681555,1706145073777,-529.72,0.00049863,31]
[312681556,1706145073786,-500.0,0.00049863,31]
[312681557,1706145073795,-502.97,0.00049863,31]
[312681558,1706145073804,-500.0,0.00049863,31]
[312681559,1706145073815,-500.0,0.00049863,31]
[312681560,1706145073824,-500.0,0.00049863,31]
[312681561,1706145073833,-992.14,0.00049863,120]
[312681562,1706145073842,-500.0,0.00049863,31]
[312681563,1706145073851,-500.0,0.00049863,31]
[312681564,1706145073861,-500.0,0.00049863,31]
[312681565,1706145073870,-500.0,0.00049863,31]
[312681566,1706145073879,-500.0,0.00049863,31]
[312681567,1706145073889,-500.0,0.00049863,31]
[312681568,1706145073898,-500.0,0.00049863,31]
[312681569,1706145073907,-500.0,0.00049863,31]
[312681570,1706145073917,-500.0,0.00049863,31]
[312681571,1706145073926,-500.0,0.00049863,31]
[312681572,1706145073935,-500.0,0.00049863,31]
[312681573,1706145073945,-500.0,0.00049863,31]
[312681574,1706145073954,-500.0,0.00049863,31]
[312681575,1706145073963,-500.0,0.00049863,31]
[312681576,1706145073972,-500.0,0.00049863,31]
[312681577,1706145073982,-500.0,0.00049863,60]
[312681578,1706145073992,-500.0,0.00049863,31]
[312681579,1706145074001,-500.0,0.00049863,31]
[312681580,1706145074010,-697.72,0.00049863,2]
[312681581,1706145074019,-500.0,0.00049863,31]
[312681582,1706145074028,-500.0,0.00049863,31]
[312681583,1706145074038,-500.0,0.00049863,31]
[312681584,1706145074047,-500.0,0.00049863,31]
[312681585,1706145074058,-500.0,0.00049863,31]
[312681586,1706145074067,-500.0,0.00049863,31]
[312681587,1706145074076,-500.0,0.00049863,31]
[312681588,1706145074085,-796.46,0.00049863,31]
[312681589,1706145074095,-500.0,0.00049863,31]
[312681590,1706145074104,-500.0,0.00049863,31]
[312681591,1706145074113,-500.0,0.00049863,31]
[312681592,1706145074123,-500.0,0.00049863,31]
[312681593,1706145074133,-500.0,0.00049863,31]
[312681594,1706145074142,-500.0,0.00049863,31]
[312681595,1706145074151,-502.99,0.00049863,31]
[312681596,1706145074160,-500.0,0.00049863,31]
[312681597,1706145074169,-500.0,0.00049863,31]
[312681598,1706145074179,-500.0,0.00049863,31]
[312681599,1706145074189,-500.0,0.00049863,31]
[312681600,1706145074198,-1084.63,0.00049863,31]
[312681601,1706145074207,-500.0,0.00049863,31]
[312681602,1706145074216,-500.0,0.00049863,31]
[312681603,1706145074226,-500.0,0.00049863,31]
[312681604,1706145074236,-341.8801651,0.00049863,31]
[312681605,1706145074249,-500.0,0.00049863,31]
[312681606,1706145074258,-500.0,0.00049863,31]
[312681607,1706145074267,-500.0,0.00049863,31]
[312681608,1706145074276,-193.75942284,0.00049863,3]
[312681609,1706145074285,-500.0,0.00049863,31]
[312681610,1706145074295,-1233.91,0.00049863,7]
[312681611,1706145074304,-500.0,0.00049863,31]
[312681612,1706145074314,-500.0,0.00049863,31]
[312681613,1706145074322,-500.0,0.00049863,31]
[312681614,1706145074331,-500.0,0.00049863,31]
[312681615,1706145074340,-500.0,0.00049863,31]
[312681616,1706145074350,-500.0,0.00049863,31]
[312681617,1706145074360,-500.0,0.00049863,14]
[312681618,1706145074369,-500.0,0.00049863,31]
[312681619,1706145074378,-500.0,0.00049863,31]
[312681620,1706145074387,-500.0,0.00049863,31]